Cogmind - Beta 13 @@@ ROGUE MODE // 2024.03.01 @ 19:43:03 Player: morimori Result: Destroyed by G-67 Veteran with Field Laser Performance ------------- Evolutions (6) 3000 Regions Visited (21) 4200 Robots Destroyed (208) 1040 Value Destroyed (8705) 8705 Prototype IDs (78) 1560 Alien Tech Used (1) 200 Bonus (2563) 2563 TOTAL SCORE: 21268 Bonus ------- High Alert Combat Kills 270 Follower Combat Kills 1485 Network Hubs Disabled 400 Aligned with FarCom 300 Met Data Miner 300 Met Zhirov 300 Friendly Fire -492 Cogmind --------- Core Integrity 0/1150 Matter 300/300 Energy 10/100 System Corruption 25% Temperature Cool (12) Movement Core (50) Location -4/Factory Parts ------- > --- POWER (2) -------- (None) > --- PROPULSION (5) --- (None) > --- UTILITY (9) ------ (None) > --- WEAPON (3) ------- (None) > --- INVENTORY (5) ---- Improved Heat Sink Structural Scanner Long-range Terrain Scanner Tesla Rifle Plasma Rifle Peak State ------------ > --- POWER ------------ Light Antimatter Reactor Light Antimatter Reactor > --- PROPULSION ------- Flexi-carbon Leg Enhanced Armored Leg Myomer Leg > --- UTILITY ---------- High-capacity Storage Unit Advanced Sensor Array Advanced Signal Interpreter Long-range Terrain Scanner Advanced Terrain Scan Processor Improved Armor Integrity Analyzer Advanced Particle Charger Improved Transmission Jammer Improved Hacking Suite > --- WEAPON ----------- Enhanced Quantum Rifle Enhanced Quantum Rifle Nova Cannon > --- INVENTORY -------- Micro Fission Core Light Antimatter Reactor Advanced Heat Sink Advanced Heat Sink Advanced Cooling System Energy Well High-capacity Matter Pod Structural Scanner Improved Armor Integrity Analyzer Medium Reactive Plating Thermal Shield Improved System Guard Mapping Drone Bay High-powered Shock Rifle Tesla Rifle Heavy Phase Cannon Matter Neutralizer High-powered Shotgun Coil Gun Heavy Gauss Cannon [Rating: 116] Favorites ----------- Power Light Antimatter Reactor Engine Light Deuterium Engine Power Core Neutrino Core Reactor Light Antimatter Reactor Propulsion Flexi-carbon Leg Leg Flexi-carbon Leg Wheel Wheel Utility Improved Hacking Suite Device Structural Scanner Storage High-capacity Storage Unit Processor Improved Signal Interpreter Hackware Improved Hacking Suite Protection Hardened Medium Armor Plating Weapon Variable Charge Gun Energy Gun Variable Charge Gun Energy Cannon Nova Cannon Ballistic Gun High-powered Shotgun Ballistic Cannon Antimatter Cannon Launcher Long-range Missile Launcher Impact Weapon Great Maul Build | -11 -10 -10 -10 -9 -8 -7 -7 -7 -7 -6 -6 -6 -6 -6 -6 -5 -5 -5 -5 -4 -4 ------- Run | Yrd Mat Min Exi Min Mat Fac Low Low Dat Pro Fac Ext Cet Arc Hub Fac Upp Upp Zhi Pro Fac Slots Evolved 12 | . . . . . 4 2 . . . . 2 . . . . 2 . . . . 2 Power 1 | . . . . . . . . . . . . . . . . . . . . . 1 Propulsion 3 | . . . . . . 2 . . . . 1 . . . . . . . . . . Utility 7 | . . . . . 3 . . . . . 1 . . . . 2 . . . . 1 Weapon 1 | . . . . . 1 . . . . . . . . . . . . . . . . Parts Attached 529 | 8 16 3 7 . 20 35 . 7 2 18 31 51 3 9 39 60 9 20 16 28 147 Power 40 | 2 4 1 . . 3 4 . . . . 3 2 . . 1 1 . . 1 1 17 Engine 14 | 2 4 1 . . 3 3 . . . . . 1 . . . . . . . . . Core 15 | . . . . . . 1 . . . . 3 1 . . 1 1 . . . . 8 Reactor 11 | . . . . . . . . . . . . . . . . . . . 1 1 9 Propulsion 66 | 2 2 . . . 1 5 . . . 3 4 14 . 1 5 9 . 1 3 3 13 Treads . | . . . . . . . . . . . . . . . . . . . . . . Leg 61 | . . . . . . 5 . . . 3 4 14 . 1 5 9 . 1 3 3 13 Wheel 5 | 2 2 . . . 1 . . . . . . . . . . . . . . . . Hover . | . . . . . . . . . . . . . . . . . . . . . . Flight . | . . . . . . . . . . . . . . . . . . . . . . Utility 315 | 2 5 1 4 . 7 22 . 4 1 9 20 24 1 5 26 38 6 13 7 18 102 Device 246 | 1 3 1 1 . 4 17 . 4 1 7 15 19 . 3 21 25 5 11 4 14 90 Storage 8 | 1 2 . 2 . . . . . . . . . . . . 1 . . . . 2 Processor 9 | . . . . . 2 . . . . 1 . . . . . . . . 1 1 4 Hackware 9 | . . . 1 . . . . . . . 2 1 . 1 . 4 . . . . . Protection 43 | . . . . . 1 5 . . . 1 3 4 1 1 5 8 1 2 2 3 6 Artifact . | . . . . . . . . . . . . . . . . . . . . . . Weapon 108 | 2 5 1 3 . 9 4 . 3 1 6 4 11 2 3 7 12 3 6 5 6 15 Energy Gun 40 | 2 3 . 1 . 4 1 . 1 . 1 1 5 . 2 2 3 1 1 2 2 8 Energy Cannon 26 | . . . 1 . 1 1 . . . 2 1 4 . 1 4 1 1 1 1 2 5 Ballistic Gun 13 | . 2 1 1 . 1 . . 1 . 1 1 . . . . 1 . 1 . 2 1 Ballistic Cannon 5 | . . . . . . . . . . . . . . . . 3 . . 1 . 1 Launcher 21 | . . . . . 1 1 . 1 1 2 1 2 2 . 1 4 1 3 1 . . Special Weapon . | . . . . . . . . . . . . . . . . . . . . . . Impact Weapon 3 | . . . . . 2 1 . . . . . . . . . . . . . . . Slashing Weapon . | . . . . . . . . . . . . . . . . . . . . . . Piercing Weapon . | . . . . . . . . . . . . . . . . . . . . . . Special Melee Weapon . | . . . . . . . . . . . . . . . . . . . . . . Unidentified Prototypes 9 | . . . . . . 1 . . . . . 2 1 . 1 . . 1 1 . 2 Corrupted Parts 6 | . . . . . . . . . . . . . . 1 1 . . . 2 1 1 System Corruption 19 | . . . . . . . . . . . . . . 1 1 . . . 11 4 2 Parts Lost 103 | . 2 . . . 2 2 . . . 7 . 4 . 1 7 6 . 2 13 10 47 Power 16 | . . . . . 1 2 . . . . . . . . 1 . . . 1 1 10 Propulsion 33 | . 1 . . . 1 . . . . 3 . 3 . 1 2 3 . . 4 4 11 Utility 24 | . 1 . . . . . . . . 2 . 1 . . . 1 . . 3 . 16 Weapon 30 | . . . . . . . . . . 2 . . . . 4 2 . 2 5 5 10 Highest Loss Streak 13 | . 1 . . . 2 1 . . . 5 . 2 . 1 2 4 . 1 13 3 9 To Critical Strikes 1 | . . . . . . . . . . . . . . . . . . . . 1 . Average Slot Usage (%) 94 | . 91 100 99 100 99 99 92 93 100 98 99 95 100 99 99 99 100 99 92 83 86 Engine 3 | . 13 14 14 14 9 4 7 7 7 7 . . 6 6 5 . . . . . . Core 2 | . . . . . . 1 . . . . 6 5 . . . 4 5 5 1 . 3 Reactor 1 | . . . . . . . . . . . . . . . . . . . 3 4 5 Leg 20 | . . . . . . 29 30 30 30 29 33 29 33 32 32 28 29 29 22 16 14 Wheel 4 | . 26 28 28 28 17 . . . . . . . . . . . . . . . . Device 12 | . 9 14 3 . 10 12 15 15 15 15 15 9 6 6 11 9 10 9 11 8 18 Storage 6 | . 14 14 13 14 9 7 7 7 7 7 6 6 6 6 6 4 5 5 5 5 4 Processor 7 | . . . . . 8 7 7 7 7 9 9 6 6 6 6 5 5 5 6 9 14 Hackware 10 | . . . 11 14 9 7 7 7 7 3 6 14 13 13 13 22 23 23 18 17 6 Protection 1 | . . . . . 7 2 . . . 1 . . 6 5 1 1 . . 1 3 . Energy Gun 7 | . 16 14 13 14 10 7 . . 7 3 . 3 6 6 6 9 11 8 5 2 7 Energy Cannon 2 | . . . . . . . 7 3 . 3 6 2 6 6 5 1 4 2 1 2 4 Ballistic Gun 3 | . 10 14 13 14 9 7 . . 7 1 3 5 . . . . . . 2 4 . Launcher 1 | . . . . . . . . 2 . 5 2 4 6 6 5 . . 3 2 1 . Impact Weapon 2 | . . . . . 6 6 7 7 7 7 6 1 . . . . . . . . . Naked Turns 1 | . . . . . . . . . . . . . . . . . . . . . 1 Heaviest Build 117 | 14 28 32 51 51 75 75 72 72 64 70 76 80 81 79 81 87 84 84 91 93 117 Greatest Support 105 | 20 20 20 20 20 20 62 62 62 62 71 84 105 101 101 96 92 92 92 92 84 100 Greatest Overweight (x) 19 | 1 1 1 2 2 6 2 1 1 1 1 . 1 . . . 1 . . 1 3 19 Average Overweight (x) . | . . 1 1 2 2 . 1 . . . . . . . . . . . . 1 . Largest Inventory Capacity 20 | 8 15 15 20 20 20 20 20 20 20 20 20 20 20 20 20 20 20 20 20 20 20 Average Capacity 19 | 7 11 15 16 20 20 20 20 20 20 20 20 20 20 20 20 19 20 20 20 20 19 Most Carried 20 | 8 15 15 20 20 20 20 20 20 18 20 20 20 20 20 20 20 20 20 20 20 20 Average Carried 18 | 3 10 14 15 19 19 19 20 18 18 17 18 19 19 20 19 19 19 19 13 18 18 Final Capacity 20 | 8 15 15 20 20 20 20 20 20 20 20 20 20 20 20 20 20 20 20 20 20 5 Final Carried 20 | 8 15 15 20 20 20 20 20 18 18 14 20 20 20 20 18 20 20 20 11 20 5 Class Distribution -------------------- 25% | Hacker-Skirmisher 17% | Mutant 16% | Scavenger-Assassin 14% | Scavenger-Skirmisher 5% | Hacker-Mutant 4% | Scavenger-Mutant 4% | Hacker-Tank 4% | Scavenger-Gunner Dominant Class ---------------- Mutant | -10/Materials Mutant | -10/Mines Mutant | -10/Exiles Mutant | -9/Mines Mutant | -8/Materials Scavenger-Assassin | -7/Factory Scavenger-Assassin | -7/Lower Caves Scavenger-Assassin | -7/Lower Caves Scavenger-Assassin | -7/Data Miner Scavenger-Assassin | -6/Proximity Caves Scavenger-Assassin | -6/Factory Hacker-Skirmisher | -6/Extension Hacker-Tank | -6/Cetus Scavenger-Tank | -6/Archives Scavenger-Skirmisher | -6/Hub_04(d) Hacker-Skirmisher | -5/Factory Hacker-Skirmisher | -5/Upper Caves Hacker-Skirmisher | -5/Upper Caves Hacker-Skirmisher | -5/Zhirov Hacker-Skirmisher | -4/Proximity Caves Scavenger-Skirmisher | -4/Factory Resources | -11 -10 -10 -10 -9 -8 -7 -7 -7 -7 -6 -6 -6 -6 -6 -6 -5 -5 -5 -5 -4 -4 ----------- Run | Yrd Mat Min Exi Min Mat Fac Low Low Dat Pro Fac Ext Cet Arc Hub Fac Upp Upp Zhi Pro Fac Matter Collected 7625 | 280 190 289 140 6 292 424 96 34 . 285 473 653 85 85 295 1033 163 526 69 689 1518 Remotely . | . . . . . . . . . . . . . . . . . . . . . . Salvage Created 9607 | 103 471 . . 10 335 442 163 31 . 192 378 799 139 380 764 1135 117 615 210 475 2848 Parts 480 | 7 42 . . 2 17 22 4 1 . 20 18 43 5 15 48 48 7 23 7 21 130 Haulers Intercepted 4 | . 2 . . . . 1 . . . . 1 . . . . . . . . . . Recyclers Shooed 11 | . 1 . . . . . . . . . 1 . . . . 2 . . . . 7 Parts Field Recycled . | . . . . . . . . . . . . . . . . . . . . . . Retrieved Matter . | . . . . . . . . . . . . . . . . . . . . . . Parts Self-Destructed 55 | . . . . . . . 5 3 . 15 . . . . . . 2 15 . 15 . Prevented 15 | . . . . . . . . . . . . . . . . . 4 10 . 1 . Kills | -11 -10 -10 -10 -9 -8 -7 -7 -7 -7 -6 -6 -6 -6 -6 -6 -5 -5 -5 -5 -4 -4 ------- Run | Yrd Mat Min Exi Min Mat Fac Low Low Dat Pro Fac Ext Cet Arc Hub Fac Upp Upp Zhi Pro Fac Combat Hostiles Destroyed 138 | . 5 . . . 6 10 5 1 . 9 5 12 2 2 9 15 3 9 . 10 35 Guns 67 | . 5 . . . 6 7 . 1 . 2 . 10 . . 4 5 2 2 . 4 19 Cannons 36 | . . . . . . . 1 . . 2 5 . 1 2 2 4 . 3 . 5 11 AOE 25 | . . . . . . 3 3 . . 5 . 1 1 . 3 3 1 2 . 1 2 Classes Destroyed 17 | 2 5 . . 1 2 2 . . . 1 . . 1 . . 1 . 1 . . 1 Worker 10 | . . . . 1 1 1 . . . . . . . . 5 . . . . . 2 Builder 13 | . 3 . . . 1 . . . . . 2 2 . . 2 . . . . . 3 Tunneler 4 | 2 . . . . . . . . . . . . . . 1 . . . . . 1 Hauler 4 | . 2 . . . . 1 . . . . 1 . . . . . . . . . . Recycler 12 | 1 . . . . . 1 . . . . . 2 . . . 4 . . . . 4 Mechanic 2 | . . . . . . . . . . . . . . . . 1 . . . . 1 Operator 12 | . 1 . . . . . 1 . . . 1 . . 6 3 . . . . . . Drone 2 | . . . . . . . . . . 2 . . . . . . . . . . . Watcher 11 | . 3 . . . 1 . . . . . . 1 1 . 3 1 . . . . 1 Swarmer 25 | . . . . . . 3 1 . . 4 . 5 . . 2 4 2 . . 4 . Grunt 40 | . 5 . . . 3 4 4 1 . . 3 1 1 . 2 . . 3 . 3 10 Brawler 2 | . . . . . . . . . . . . . 1 . . . . 1 . . . Duelist 2 | . . . . . . . . . . . . . . . . . . . . . 2 Sentry 13 | . . . . . 2 1 . . . . . 6 . 2 1 . 1 . . . . Specialist 1 | . . . . . . . . . . . . . . . . . . 1 . . . Hunter 13 | . . . . . 1 . . . . 2 . . . . 1 4 . 1 . 2 2 Programmer 40 | . . . . . . 2 . . . 1 2 . . . 3 7 . 3 . 1 21 Best Kill Streak 7 | 3 5 . . 1 3 3 5 1 . 3 3 5 1 2 7 4 3 4 1 3 4 Combat Bots Only 5 | . 4 . . . 3 3 5 1 . 3 2 5 1 2 3 4 3 4 . 3 3 Max Kills in Single Turn 6 | 1 1 . . 1 1 3 3 1 . 3 1 2 1 1 6 1 1 1 1 1 4 Gunslinging 1 | . . . . . . . . . . . . 1 . . . . . . . . . Exploded 3 | . . . . . . 3 2 . . 3 . 1 1 . 2 1 1 1 . 1 2 Melee . | . . . . . . . . . . . . . . . . . . . . . . Uniques/NPCs Destroyed 2 | . . . . . . . . . . . . . . . . . . . 2 . . Svarog (-5/Zhirov) Perun (-5/Zhirov) Combat | -11 -10 -10 -10 -9 -8 -7 -7 -7 -7 -6 -6 -6 -6 -6 -6 -5 -5 -5 -5 -4 -4 -------- Run | Yrd Mat Min Exi Min Mat Fac Low Low Dat Pro Fac Ext Cet Arc Hub Fac Upp Upp Zhi Pro Fac Hostile Shots Fired 1551 | . 42 . . 1 38 100 10 8 . 56 33 197 8 18 117 120 10 67 254 128 344 Missed 430 | . 13 . . . 9 40 5 2 . 10 11 94 3 7 41 31 4 17 23 31 89 Damage Taken 19642 | . 373 . . 31 476 603 153 85 . 771 373 1173 106 340 2089 1688 144 952 2638 1535 6112 Core 2805 | . 76 . . . 84 147 29 1 . 86 39 78 66 75 145 157 14 83 420 150 1155 Absorbed by Shields 29 | . . . . . . . . . . . . . 29 . . . . . . . . Ignored by Resistances 535 | . . . . . . 24 . . . 21 8 67 . . . . . . . 139 276 Regen/Repaired (Parts) 2975 | . . . . . . . . . . . 87 . . . . 2132 . . . . 756 Core Remaining (%) 64 | 100 . . . 69 84 . . . . 62 . . . . 52 . . . . 17 . Volleys Fired 752 | 9 48 2 . 3 33 28 3 5 . 33 27 45 8 39 61 92 8 34 24 39 211 Largest 3 | 2 2 2 . 2 2 2 1 2 . 2 2 3 2 2 2 3 3 2 3 2 3 Hottest 300 | 90 90 63 . 63 88 116 100 105 . 145 115 148 130 130 166 300 228 225 153 188 253 Shots Fired 1268 | 18 88 4 . 6 64 56 5 10 . 43 36 78 9 78 95 148 15 57 50 63 345 Gun 838 | 18 88 4 . 6 64 55 . 7 . 25 9 55 1 38 32 99 10 32 30 39 226 Cannon 397 | . . . . . . . 5 1 . 15 27 22 1 40 62 42 3 20 19 21 119 Launcher 33 | . . . . . . 1 . 2 . 3 . 1 7 . 1 7 2 5 1 3 . Special . | . . . . . . . . . . . . . . . . . . . . . . Kinetic 245 | . 31 2 . 3 31 27 . 3 . 13 9 29 . . . 38 . . 18 30 11 Thermal 921 | 18 47 2 . 3 33 28 5 5 . 27 27 42 . 72 94 99 7 50 6 29 327 Explosive 20 | . . . . . . 1 . 2 . 3 . 1 2 . 1 4 2 . 1 3 . Electromagnetic 82 | . 10 . . . . . . . . . . 6 7 6 . 7 6 7 25 1 7 Robot Hit Streak 33 | 8 12 1 . 3 10 8 1 9 . 3 4 26 11 13 11 14 4 6 33 8 14 Robot Miss Streak 10 | 3 6 2 . 1 5 5 1 1 . 10 1 2 1 2 7 4 1 5 2 2 4 Penetration Max . | . . . . . . . . . . . . . . . . . . . . . . Secondary Targets 4 | . . . . . 1 . . . . . . 1 . . . . . . . 1 1 Max Gunslinging Chain 1 | . . . . . 1 . . . . . . 1 . . . . . . . 1 1 Shots Hit Robots 731 | 12 49 1 . 4 45 44 1 6 . 20 15 55 4 60 39 78 8 30 43 37 180 Core Hits 373 | 4 24 . . 1 20 27 5 3 . 14 9 31 11 21 39 33 5 14 9 19 84 Critical Kills 4 | . . . . . . . 1 . . . . 1 . . . . . . . 2 . Critical Parts Destroyed 5 | . . . . 1 . 1 . . . . . . . . . . . . . 3 . Critical Strikes 30 | . 1 . . 1 2 1 1 . . . . 2 . 1 2 . . . . 5 14 Burn 21 | . 1 . . . 2 . . . . . . 1 . 1 2 . . . . . 14 Meltdown 1 | . . . . . . . 1 . . . . . . . . . . . . . . Destroy 8 | . . . . 1 . 1 . . . . . 1 . . . . . . . 5 . Melee Attacks 43 | . . . . . 13 . 1 6 . 4 19 . . . . . . . . . . Impact 43 | . . . . . 13 . 1 6 . 4 19 . . . . . . . . . . Slashing . | . . . . . . . . . . . . . . . . . . . . . . Piercing . | . . . . . . . . . . . . . . . . . . . . . . Sneak Attacks 3 | . . . . . . . . . . . 3 . . . . . . . . . . Combat Hostiles . | . . . . . . . . . . . . . . . . . . . . . . Follow-up Attacks . | . . . . . . . . . . . . . . . . . . . . . . Damage Inflicted 25577 | 139 638 10 . 53 825 1112 676 242 . 828 711 1386 1197 1529 2620 2777 268 1196 1136 1183 7051 Guns 13311 | 139 638 10 . 53 825 957 . 144 . 307 85 1108 20 677 487 1714 108 418 512 459 4650 Cannons 6191 | . . . . . . . 257 . . 108 342 228 36 852 657 415 64 351 558 414 1909 Explosions 5791 | . . . . . . 155 419 98 . 413 . 50 1141 . 1476 648 96 427 66 310 492 Melee 284 | . . . . . . . . . . . 284 . . . . . . . . . . Ramming . | . . . . . . . . . . . . . . . . . . . . . . Kinetic 3334 | . 236 . . 31 433 450 . 57 . 122 85 543 . . . 347 . . 394 331 305 Thermal 16145 | 139 380 10 . 22 392 507 676 87 . 293 342 628 339 1380 1144 1714 62 746 153 525 6606 Explosive 2217 | . . . . . . 155 . 98 . 413 . 50 346 . 185 498 96 . 66 310 . Electromagnetic 3597 | . 22 . . . . . . . . . . 165 512 149 1291 218 110 450 523 17 140 Impact 284 | . . . . . . . . . . . 284 . . . . . . . . . . Slashing . | . . . . . . . . . . . . . . . . . . . . . . Piercing . | . . . . . . . . . . . . . . . . . . . . . . Highest Corruption 39 | . . . . . . 5 5 5 5 6 4 2 . 1 19 7 7 13 34 39 25 Average Corruption 9 | . . . . . . 2 5 5 5 5 2 1 . 1 2 6 7 9 25 35 7 Corruption Purged 12 | . . . . . . . . . . . 4 2 . . . . . . . . 6 Corruption Blocked . | . . . . . . . . . . . . . . . . . . . . . . Effects 347 | . . . . . . 12 13 11 2 27 8 2 . 4 20 56 14 30 15 76 57 Message Errors 78 | . . . . . . 2 2 2 2 7 3 . . . 2 6 4 8 2 23 15 Matter Fused 89 | . . . . . . 4 2 5 . 7 . 1 . . 6 12 4 10 2 21 15 Heat Flow Errors 51 | . . . . . . 2 3 1 . 5 . . . . 4 12 4 5 1 7 7 Energy Discharges 41 | . . . . . . 2 . . . 4 2 . . . 4 8 1 3 1 7 9 Parts Rejected 4 | . . . . . . . . . . . . . . . 1 . . 1 . 1 1 Parts Fused 2 | . . . . . . . . . . . . . . . . 2 . . . . . Data Loss (minor) 38 | . . . . . . 2 3 1 . 4 2 1 . 1 1 8 1 1 4 7 2 Data Loss (major) 12 | . . . . . . . 1 . . . . . . . . 2 . 1 . 5 3 Misfires 17 | . . . . . . . 2 2 . . . . . 1 2 4 . 1 3 1 1 Alerts 5 | . . . . . . . . . . . 1 . . 2 . 1 . . 1 . . Weapon Failures 10 | . . . . . . . . . . . . . . . . 1 . . 1 4 4 Overload Shots 26 | . . . . . . . . . . . . . . . 1 6 2 8 . . 9 Effects 1 | . . . . . . . . . . . . . . . . . . 1 . . . Heat Surge 1 | . . . . . . . . . . . . . . . . . . 1 . . . Overflow Damage 854 | . . . . . . 20 40 . . 28 194 . 59 40 54 98 . 28 28 33 232 Projectiles 290 | . . . . . . . 18 . . . . . . 40 4 43 . 25 28 33 99 Explosions 370 | . . . . . . 20 22 . . 28 . . 59 . 50 55 . 3 . . 133 Melee 194 | . . . . . . . . . . . 194 . . . . . . . . . . Knockbacks 11 | . . . . . . . . . . . 2 . . . . 4 . . 1 . 4 Impact 1 | . . . . . . . . . . . 1 . . . . . . . . . . Kinetic 9 | . . . . . . . . . . . . . . . . 4 . . 1 . 4 Secondary 1 | . . . . . . . . . . . 1 . . . . . . . . . . Self-Inflicted Damage 584 | . . . . . . . 82 40 . 51 . . . . 209 114 . 24 3 . 61 Shots 11 | . . . . . . . 1 2 . 1 . . . . 3 1 . 1 1 . 1 Rammed . | . . . . . . . . . . . . . . . . . . . . . . Targets Rammed . | . . . . . . . . . . . . . . . . . . . . . . Kicked . | . . . . . . . . . . . . . . . . . . . . . . Crushed . | . . . . . . . . . . . . . . . . . . . . . . Highest Temperature 444 | 140 237 3 . 6 39 285 261 162 . 221 128 157 45 160 302 367 189 444 106 272 333 Average Temperature 67 | 53 52 2 . 4 8 51 88 70 . 73 30 50 24 43 80 65 74 126 48 77 70 Received Heat Transfer 2204 | . 216 . . . 225 228 9 27 . . 126 291 4 36 93 . 9 126 63 168 583 Effects 13 | . . . . . . . 2 . . . . . . . . 1 . 4 . . 6 Shutdowns 1 | . . . . . . . . . . . . . . . . . . 1 . . . Energy Bleed 2 | . . . . . . . . . . . . . . . . 1 . . . . 1 Interference 10 | . . . . . . . 2 . . . . . . . . . . 3 . . 5 Siege Activations . | . . . . . . . . . . . . . . . . . . . . . . Robots Corrupted 6 | . . . . . . . . . . . . . . . . 2 . 2 2 . . Combat Hostiles 4 | . . . . . . . . . . . . . . . . 2 . 2 . . . Parts Fried 23 | . . . . . . . . . . . 4 1 . . 4 3 . 1 9 . 1 Impact Corruptions 7 | . . . . . . . . . . . 7 . . . . . . . . . . Robots Melted 7 | . . . . . . . 1 . . . . 1 . . . 1 . . . . 4 Combat Hostiles 6 | . . . . . . . 1 . . . . 1 . . . 1 . . . . 3 Parts Melted 69 | . 1 . . . 1 1 2 . . . . 6 . 8 5 12 . 4 . . 29 Heat Transferred 24093 | 384 1161 25 . 50 999 1035 720 200 . 523 407 1217 200 2109 1591 2479 111 925 222 657 9078 Parts Sabotaged . | . . . . . . . . . . . . . . . . . . . . . . Parts Stolen 4 | . . . . . . . . 3 . . . . . . . . . 1 . . . Parts Stripped . | . . . . . . . . . . . . . . . . . . . . . . Power Chain Reactions 2 | . . . . . . . . . . . . . 1 . 1 . . . . . . Alert | -11 -10 -10 -10 -9 -8 -7 -7 -7 -7 -6 -6 -6 -6 -6 -6 -5 -5 -5 -5 -4 -4 ------- Run | Yrd Mat Min Exi Min Mat Fac Low Low Dat Pro Fac Ext Cet Arc Hub Fac Upp Upp Zhi Pro Fac Peak Influence 627 | 15 207 92 . 20 125 131 . . . . 113 319 519 288 560 519 . . . . 627 Initial 274 | . 9 6 . . 7 7 . . . . . . 36 207 30 274 . . . . 1 Average 133 | 4 52 32 . 4 20 63 . . . . 48 78 345 237 111 191 . . . . 241 Maximum Alert Level 2 | . 1 . . . . . . . . . . 1 2 1 2 2 . . . . 2 Low Security (%) 78 | 100 99 100 . 100 100 100 . . . . 100 96 23 16 79 66 . . . . 58 Level 1 10 | . . . . . . . . . . . . 3 41 84 12 21 . . . . 14 Level 2 10 | . . . . . . . . . . . . . 34 . 8 12 . . . . 26 Level 3 . | . . . . . . . . . . . . . . . . . . . . . . Level 4 . | . . . . . . . . . . . . . . . . . . . . . . Level 5 . | . . . . . . . . . . . . . . . . . . . . . . High Security . | . . . . . . . . . . . . . . . . . . . . . . Max Security . | . . . . . . . . . . . . . . . . . . . . . . Squads Dispatched 39 | . 1 . . 1 2 3 . . . . 5 . . . 5 6 . . . . 16 Investigation 6 | . . . . . . . . . . . 2 . . . . 2 . . . . 2 Extermination 22 | . . . . . . 2 . . . . 2 . . . 3 4 . . . . 11 Reinforcement 7 | . 1 . . . 1 1 . . . . 1 . . . 2 . . . . . 1 Assault 4 | . . . . 1 1 . . . . . . . . . . . . . . . 2 Garrison . | . . . . . . . . . . . . . . . . . . . . . . Intercept . | . . . . . . . . . . . . . . . . . . . . . . Searches Triggered . | . . . . . . . . . . . . . . . . . . . . . . Data Miner Redirects 1 | . . . . . . . . . . . . . . . . . . . . . 1 Construction Impeded . | . . . . . . . . . . . . . . . . . . . . . . Haulers Reinforced 1 | . . . . . . 1 . . . . . . . . . . . . . . . Active Scanning Responses . | . . . . . . . . . . . . . . . . . . . . . . Cargo Convoy Interrupts . | . . . . . . . . . . . . . . . . . . . . . . Stealth | -11 -10 -10 -10 -9 -8 -7 -7 -7 -7 -6 -6 -6 -6 -6 -6 -5 -5 -5 -5 -4 -4 --------- Run | Yrd Mat Min Exi Min Mat Fac Low Low Dat Pro Fac Ext Cet Arc Hub Fac Upp Upp Zhi Pro Fac Distress Signals 16 | . . . . . 5 . . . . . . 3 1 . 3 . . . . . 4 Communications Jammed 88 | . . . . . . . . . . . . . . . 4 . . . . . 84 Distress Signals 88 | . . . . . . . . . . . . . . . 4 . . . . . 84 Times Spotted 292 | . 14 2 . 4 13 12 7 4 . 7 13 31 11 17 24 25 3 10 3 15 77 Peak Tracking Total 12 | . 5 4 . 4 3 4 5 3 . 4 4 6 5 2 12 4 2 4 3 4 7 Tactical Retreats 15 | . . . . . . . . . . . . 1 . . 6 1 . 1 . 2 4 Traps | -11 -10 -10 -10 -9 -8 -7 -7 -7 -7 -6 -6 -6 -6 -6 -6 -5 -5 -5 -5 -4 -4 ------- Run | Yrd Mat Min Exi Min Mat Fac Low Low Dat Pro Fac Ext Cet Arc Hub Fac Upp Upp Zhi Pro Fac Traps Triggered 8 | . 1 . . . . . . . . . 3 1 . . . . 1 . . . 2 Indirectly . | . . . . . . . . . . . . . . . . . . . . . . Trap Hack Attempts . | . . . . . . . . . . . . . . . . . . . . . . Triggered . | . . . . . . . . . . . . . . . . . . . . . . Disarmed 1 | . . . . . 1 . . . . . . . . . . . . . . . . Reprogrammed . | . . . . . . . . . . . . . . . . . . . . . . Reused . | . . . . . . . . . . . . . . . . . . . . . . Traps Extracted . | . . . . . . . . . . . . . . . . . . . . . . Installed . | . . . . . . . . . . . . . . . . . . . . . . Triggered 1 | . . . . . . . . . . . . . . . . . . . . 1 . Machines | -11 -10 -10 -10 -9 -8 -7 -7 -7 -7 -6 -6 -6 -6 -6 -6 -5 -5 -5 -5 -4 -4 ---------- Run | Yrd Mat Min Exi Min Mat Fac Low Low Dat Pro Fac Ext Cet Arc Hub Fac Upp Upp Zhi Pro Fac Machines Disabled 52 | . 2 . . 1 . . 4 . . . 2 2 4 2 18 7 . 1 2 . 7 Max in Single Turn 11 | . 1 . . 1 . . 3 . . . . 1 1 1 11 4 . 1 1 . 2 Garrison Access 3 | . . . . . 1 . . . . . . . . . . 2 . . . . . Network Hub 2 | . . . . . . . . . . . . . . . 2 . . . . . . Machines Repaired . | . . . . . . . . . . . . . . . . . . . . . . Machines Dismantled . | . . . . . . . . . . . . . . . . . . . . . . Machines Sabotaged . | . . . . . . . . . . . . . . . . . . . . . . Overloaded Fab Kills . | . . . . . . . . . . . . . . . . . . . . . . Hacking | -11 -10 -10 -10 -9 -8 -7 -7 -7 -7 -6 -6 -6 -6 -6 -6 -5 -5 -5 -5 -4 -4 --------- Run | Yrd Mat Min Exi Min Mat Fac Low Low Dat Pro Fac Ext Cet Arc Hub Fac Upp Upp Zhi Pro Fac Machines Accessed 91 | . 8 . 1 . 8 8 . . 4 . 4 4 1 . 8 23 1 1 7 . 13 Terminals 48 | . 7 . . . 6 6 . . . . 2 3 1 . 7 10 . . . . 6 Fabricators 5 | . . . . . . 1 . . . . . . . . . 2 . . . . 2 Repair Stations 9 | . . . . . . 1 . . . . 1 . . . . 4 . . . . 3 Recycling Units 9 | . 1 . . . . . . . . . . 1 . . . 5 . . . . 2 Scanalyzers 2 | . . . . . 1 . . . . . 1 . . . . . . . . . . Garrison Access 4 | . . . . . 1 . . . . . . . . . 1 2 . . . . . Total Hacks 439 | . 33 . 1 . 31 17 . . 31 . 17 11 1 . 45 133 1 1 46 . 71 Successful 288 | . 17 . 1 . 22 9 . . 31 . 8 6 . . 24 85 1 1 46 . 37 Failed 148 | . 15 . . . 8 7 . . . . 9 5 1 . 21 48 . . . . 34 Catastrophic 13 | . 2 . . . . 1 . . . . . 1 . . 2 6 . . . . 1 Database Lockouts 3 | . 1 . . . 1 1 . . . . . . . . . . . . . . . Manual 170 | . 21 . 1 . 13 9 . . . . 5 6 2 1 35 48 . . . . 29 Terminals 226 | . 31 . . . 21 15 . . . . 6 10 1 . 43 64 . . . . 35 Fabricators 28 | . . . . . . 1 . . . . . . . . . 11 . . . . 16 Repair Stations 65 | . . . . . . 1 . . . . 4 . . . . 42 . . . . 18 Recycling Units 15 | . 2 . . . . . . . . . . 1 . . . 10 . . . . 2 Scanalyzers 15 | . . . . . 8 . . . . . 7 . . . . . . . . . . Garrison Access 10 | . . . . . 2 . . . . . . . . . 2 6 . . . . . Terminal Hacks 169 | . 13 . 1 . 8 4 . . 31 . 1 3 . . 15 32 1 1 46 . 13 Record 51 | . . . . . . . . . 11 . . . . . . 4 . 1 34 . 1 Part Schematic 22 | . . . . . . . . . 12 . . . . . . 5 . . 4 . 1 Robot Schematic 5 | . . . . . . . . . 5 . . . . . . . . . . . . Robot Analysis 11 | . . . . . 1 . . . . . . 1 . . 1 2 . . 4 . 2 Prototype ID Bank 24 | . 5 . . . 1 2 . . 3 . . . . . 3 5 . . 4 . 1 Open Door 1 | . . . . . . . . . . . . . . . . . 1 . . . . Level Access Points 3 | . . . . . . . . . . . . . . . 1 1 . . . . 1 Branch Access Points 4 | . . . . . 1 1 . . . . . . . . . 1 . . . . 1 Machine Index 1 | . . . . . . . . . . . . . . . . 1 . . . . . Terminal Index 6 | . 1 . . . 1 1 . . . . . . . . 1 1 . . . . 1 Fabricator Index 1 | . . . . . . . . . . . 1 . . . . . . . . . . Repair Station Index 1 | . . . . . . . . . . . . . . . . . . . . . 1 Alert Level 4 | . . . . . 1 . . . . . . . . . 1 2 . . . . . Unreport Threat 6 | . . . . . 1 . . . . . . 1 . . 4 . . . . . . Locate Traps 12 | . 3 . . . . . . . . . . . . . 2 4 . . . . 3 Disarm Traps 2 | . 1 . . . 1 . . . . . . . . . . . . . . . . Recall Reinforcements 1 | . . . . . 1 . . . . . . . . . . . . . . . . Registered Components 3 | . 1 . . . . . . . . . . . . . . 1 . . . . 1 Registered Prototypes 3 | . . . . . . . . . . . . . . . . 3 . . . . . Zone Layout 7 | . 2 . . . . . . . . . . 1 . . 2 2 . . . . . Derelict Proto ID Bank 1 | . . . 1 . . . . . . . . . . . . . . . . . . Fabricator Hacks 9 | . . . . . . 1 . . . . . . . . . 4 . . . . 4 Network Status 2 | . . . . . . . . . . . . . . . . 1 . . . . 1 Load Schematic 2 | . . . . . . . . . . . . . . . . 1 . . . . 1 Build 5 | . . . . . . 1 . . . . . . . . . 2 . . . . 2 Repair Station Hacks 44 | . . . . . . . . . . . 4 . . . . 30 . . . . 10 Scan Component 23 | . . . . . . . . . . . 2 . . . . 16 . . . . 5 Repair 21 | . . . . . . . . . . . 2 . . . . 14 . . . . 5 Recycling Unit Hacks 7 | . . . . . . . . . . . . 1 . . . 4 . . . . 2 Retrieve Components 7 | . . . . . . . . . . . . 1 . . . 4 . . . . 2 Scanalyzer 11 | . . . . . 8 . . . . . 3 . . . . . . . . . . Insert Component 4 | . . . . . 3 . . . . . 1 . . . . . . . . . . Analyze 7 | . . . . . 5 . . . . . 2 . . . . . . . . . . Garrison Access Hacks 3 | . . . . . 1 . . . . . . . . . . 2 . . . . . Seal Access 3 | . . . . . 1 . . . . . . . . . . 2 . . . . . Unauthorized Hacks 45 | . 4 . . . 5 4 . . . . . 2 . . 9 13 . . . . 8 Terminals 37 | . 4 . . . 5 4 . . . . . 2 . . 9 9 . . . . 4 Track 7 | . . . . . . . . . . . . . . . 4 3 . . . . . Assimilate 6 | . 1 . . . 3 . . . . . . . . . 1 1 . . . . . Botnet 11 | . 2 . . . 1 2 . . . . . 1 . . 1 2 . . . . 2 Disrupt 6 | . . . . . . 1 . . . . . 1 . . 2 2 . . . . . Operators 7 | . 1 . . . 1 1 . . . . . . . . 1 1 . . . . 2 Fabricators 8 | . . . . . . . . . . . . . . . . 4 . . . . 4 Prioritize 4 | . . . . . . . . . . . . . . . . 2 . . . . 2 Fabnet 4 | . . . . . . . . . . . . . . . . 2 . . . . 2 Repair Stations . | . . . . . . . . . . . . . . . . . . . . . . Recycling Units . | . . . . . . . . . . . . . . . . . . . . . . Scanalyzers . | . . . . . . . . . . . . . . . . . . . . . . Garrison Access . | . . . . . . . . . . . . . . . . . . . . . . Data Cores Recovered 1 | . . . . . . . . . . . . . . . 1 . . . . . . Used . | . . . . . . . . . . . . . . . . . . . . . . Hacking Detections 62 | . 8 . . . 6 8 . . . . 4 3 1 . 8 13 . . . . 11 Full Trace Events 5 | . 1 . . . . . . . . . . . . . . 2 . . . . 2 Feedback Events . | . . . . . . . . . . . . . . . . . . . . . . Feedback Blocked . | . . . . . . . . . . . . . . . . . . . . . . Robot Schematics Acquired 5 | . . . . . . . . . 5 . . . . . . . . . . . . Robots Built 2 | . . . . . . 2 . . . . . . . . . . . . . . . Authchips . | . . . . . . . . . . . . . . . . . . . . . . Time 58 | . . . . . . 58 . . . . . . . . . . . . . . . Total Robot Build Rating 6 | . . . . . . 6 . . . . . . . . . . . . . . . Part Schematics Acquired 26 | . . . . . 3 . . . 12 . 1 . . . . 5 . . 4 . 1 Parts Built 6 | . . . . . . . . . . . . . . . . 3 . . . . 3 Authchips . | . . . . . . . . . . . . . . . . . . . . . . Time 259 | . . . . . . . . . . . . . . . . 106 . . . . 153 Total Part Build Rating 46 | . . . . . . . . . . . . . . . . 22 . . . . 24 Parts Repaired 21 | . . . . . . . . . . . 2 . . . . 14 . . . . 5 Time 668 | . . . . . . . . . . . 47 . . . . 519 . . . . 102 Parts Recycled . | . . . . . . . . . . . . . . . . . . . . . . Recycled Matter . | . . . . . . . . . . . . . . . . . . . . . . Retrieved Matter . | . . . . . . . . . . . . . . . . . . . . . . Retrieved Components 22 | . . . . . . . . . . . . 3 . . . 10 . . . . 9 Parts Scanalyzed 4 | . . . . . 3 . . . . . 1 . . . . . . . . . . Part Schematics Acquired 4 | . . . . . 3 . . . . . 1 . . . . . . . . . . Parts Damaged . | . . . . . . . . . . . . . . . . . . . . . . Bothacking | -11 -10 -10 -10 -9 -8 -7 -7 -7 -7 -6 -6 -6 -6 -6 -6 -5 -5 -5 -5 -4 -4 ------------ Run | Yrd Mat Min Exi Min Mat Fac Low Low Dat Pro Fac Ext Cet Arc Hub Fac Upp Upp Zhi Pro Fac Used RIF Installer . | . . . . . . . . . . . . . . . . . . . . . . Robots Hacked 6 | . . . . . . . . . . . . . . . . . . . . 2 4 Non-combat . | . . . . . . . . . . . . . . . . . . . . . . Combat 6 | . . . . . . . . . . . . . . . . . . . . 2 4 Robot Hacks Applied . | . . . . . . . . . . . . . . . . . . . . . . Relay Couplers Released 3 | . . . . . . . . . . . . . . . . . . . . . 3 Programmers 3 | . . . . . . . . . . . . . . . . . . . . . 3 Fabnet Peak Effective % 6 | . . . . . . . . . . . . . . . . . . . . 6 6 Autooverrided 6 | . . . . . . . . . . . . . . . . . . . . 2 4 Robots Rewired 19 | . . . . . . . . . . . . 19 . . . . . . . . . Allies Hacked . | . . . . . . . . . . . . . . . . . . . . . . Hacks Repelled . | . . . . . . . . . . . . . . . . . . . . . . Allies | -11 -10 -10 -10 -9 -8 -7 -7 -7 -7 -6 -6 -6 -6 -6 -6 -5 -5 -5 -5 -4 -4 -------- Run | Yrd Mat Min Exi Min Mat Fac Low Low Dat Pro Fac Ext Cet Arc Hub Fac Upp Upp Zhi Pro Fac Total Allies 42 | . 1 3 . 1 2 2 . . . 1 . 25 . . . 1 . . . 2 4 Largest Group 11 | . 1 3 1 1 1 3 3 . . 1 1 11 10 5 . 1 . . . 1 2 Highest-Rated Group 409 | . 10 73 11 31 31 52 52 . . 96 96 409 409 280 . 10 . . . 54 103 Highest-Rated Ally 159 | . 10 31 11 31 31 21 21 . . 96 96 159 159 159 . 10 . . . 54 58 Total Orders 27 | . . . 2 . 6 11 . . . . . 2 . . . . 6 . . . . STAY 10 | . . . . . 3 5 . . . . . . . . . . 2 . . . . ROAM 1 | . . . . . . 1 . . . . . . . . . . . . . . . FOLLOW 9 | . . . . . 3 5 . . . . . 1 . . . . . . . . . GUARD 1 | . . . . . . . . . . . . 1 . . . . . . . . . EXPLORE 4 | . . . 1 . . . . . . . . . . . . . 3 . . . . RETURN 2 | . . . 1 . . . . . . . . . . . . . 1 . . . . Ally Attacks 262 | . . 24 . 3 5 2 5 . . 1 25 114 59 13 . . . . . 2 9 Total Damage 5553 | . . 352 . 64 85 36 105 . . . 830 2299 1206 197 . . . . . 14 365 Kills 40 | . . 4 . . . 1 2 . . . 4 12 13 2 . . . . . . 2 Allies Corrupted . | . . . . . . . . . . . . . . . . . . . . . . Allies Melted 2 | . . . . . . . . . . . . 2 . . . . . . . . . Intel | -11 -10 -10 -10 -9 -8 -7 -7 -7 -7 -6 -6 -6 -6 -6 -6 -5 -5 -5 -5 -4 -4 ------- Run | Yrd Mat Min Exi Min Mat Fac Low Low Dat Pro Fac Ext Cet Arc Hub Fac Upp Upp Zhi Pro Fac Robot Analysis Total 11 | . . . . . 1 . . . . . . 1 . . 1 2 . . 4 . 2 Derelict Logs Recovered 5 | . . 1 . . . . . . . 1 . . . . . . 1 1 . 1 . Drone Launches 4 | . . . 1 . . . . . . . . . . . . . 3 . . . . Drone Recoveries 4 | . . . 1 . . . . . . . . . . . . . 3 . . . . Exploration | -11 -10 -10 -10 -9 -8 -7 -7 -7 -7 -6 -6 -6 -6 -6 -6 -5 -5 -5 -5 -4 -4 ------------- Run | Yrd Mat Min Exi Min Mat Fac Low Low Dat Pro Fac Ext Cet Arc Hub Fac Upp Upp Zhi Pro Fac Turns Passed 24565 | 86 1133 640 522 77 2646 933 520 637 99 1093 1655 1403 284 425 1510 2873 560 923 367 1314 4865 Spaces Moved 12993 | 46 994 590 468 53 1189 562 264 334 79 555 953 658 174 222 864 1479 361 610 219 487 1832 Core 8 | 1 . . . . . . . . . . . . . . . . . . . . 7 Treads . | . . . . . . . . . . . . . . . . . . . . . . Legs 9639 | . . . . . . 555 264 334 79 555 953 658 174 222 864 1479 361 610 219 487 1825 Wheels 3346 | 45 994 590 468 53 1189 7 . . . . . . . . . . . . . . . Hover . | . . . . . . . . . . . . . . . . . . . . . . Flight . | . . . . . . . . . . . . . . . . . . . . . . Fastest Speed 50 | 50 80 95 80 110 110 110 192 122 122 125 124 120 122 122 122 120 120 120 115 185 50 Average Speed 134 | 79 85 95 101 110 122 129 192 155 122 159 124 138 122 122 122 122 120 120 118 206 186 Slowest Speed 1000 | 95 95 95 110 110 170 192 192 192 192 200 126 192 122 122 126 192 120 120 190 330 1000 Overloaded Moves . | . . . . . . . . . . . . . . . . . . . . . . Propulsion Burnouts . | . . . . . . . . . . . . . . . . . . . . . . Robots Hopped . | . . . . . . . . . . . . . . . . . . . . . . Cave-ins Triggered . | . . . . . . . . . . . . . . . . . . . . . . Exploration Rate (%) 56 | 4 89 98 91 8 44 17 50 50 68 64 24 69 65 91 53 36 64 71 90 65 34 Regions Visited 21 Branch Regions 15 Pre-discovered Areas 4 | . . . . . . . . . 1 . . . . . . . . . 3 . . Known Exits Taken 16 | . . . . . 1 1 1 1 1 1 1 1 1 1 1 1 1 1 1 1 . Unknown Exits Taken 5 | 1 1 1 1 1 . . . . . . . . . . . . . . . . . Scrap Searched 18 | . . 1 . . . . 1 2 . 2 . . . . . . 3 4 . 5 . Spaces Dug 180 | . . . . . 10 . 1 25 . 5 18 5 . . 19 36 2 3 . 3 53 Terrain Destroyed 952 | . . . . . 10 7 62 42 . 51 24 19 58 1 321 112 19 10 13 64 139 Melee 36 | . . . . . 10 . 1 5 . 4 16 . . . . . . . . . . Projectile 220 | . . . . . . . 3 1 . 6 8 13 . 1 31 36 2 10 . 11 98 AOE 695 | . . . . . . 7 58 36 . 41 . 6 58 . 290 76 17 . 13 52 41 Terrain Rammed . | . . . . . . . . . . . . . . . . . . . . . . Walls Destroyed . | . . . . . . . . . . . . . . . . . . . . . . Machines Disabled . | . . . . . . . . . . . . . . . . . . . . . . Actions | -11 -10 -10 -10 -9 -8 -7 -7 -7 -7 -6 -6 -6 -6 -6 -6 -5 -5 -5 -5 -4 -4 --------- Run | Yrd Mat Min Exi Min Mat Fac Low Low Dat Pro Fac Ext Cet Arc Hub Fac Upp Upp Zhi Pro Fac Total 18675 | 73 1193 668 519 66 2304 700 267 428 80 702 1347 1075 237 305 1209 2376 472 737 280 721 2916 Wait 3798 | 4 99 60 17 7 1012 51 . 75 . 88 264 160 46 27 243 685 90 68 13 151 638 Move 12972 | 45 993 589 467 52 1188 561 263 333 78 554 952 657 173 221 863 1478 360 609 218 486 1832 Hop . | . . . . . . . . . . . . . . . . . . . . . . Pick Up 257 | 7 18 6 18 2 18 11 . 2 . 3 28 15 3 4 2 43 1 2 4 15 55 Fast Attach 87 | 7 4 . 3 . 6 4 . . . 1 2 5 1 1 1 12 2 5 1 5 27 Attach 103 | . 4 . 2 . 7 5 . 2 . 7 5 4 . . 6 8 . 1 11 4 37 Detach 13 | . 1 . 2 . 1 . . . . 1 2 1 . . . . 1 . . . 4 Swap 340 | 1 8 3 2 . 7 26 . 5 2 10 24 42 2 8 32 40 7 15 4 19 83 Drop 187 | . 18 8 8 2 19 14 . . . 1 24 27 4 5 1 18 3 3 1 2 29 Fire 752 | 9 48 2 . 3 33 28 3 5 . 33 27 45 8 39 61 92 8 34 24 39 211 Melee 43 | . . . . . 13 . 1 6 . 4 19 . . . . . . . . . . Ram . | . . . . . . . . . . . . . . . . . . . . . . Kick . | . . . . . . . . . . . . . . . . . . . . . . Crush . | . . . . . . . . . . . . . . . . . . . . . . Escape Stasis 4 | . . . . . . . . . . . . . . . . . . . 4 . . Rewire 119 | . . . . . . . . . . . . 119 . . . . . . . . . Trap . | . . . . . . . . . . . . . . . . . . . . . . Miscellaneous . | . . . . . . . . . . . . . . . . . . . . . . Route ------- -11/Scrapyard -10/Materials (discovered 4 exits: [*Mat x2] / [*Min x2]) -10/Mines (discovered 3 exits: [*Mat x2] / *Exi) -10/Exiles (discovered 2 exits: [*Min x2]) -9/Mines -8/Materials (discovered 3 exits: *Fac x3) -7/Factory (discovered 3 exits: *Fac / *Low x2) -7/Lower Caves -7/Lower Caves -7/Data Miner -6/Proximity Caves -6/Factory (discovered 3 exits: *Low x2 / *Ext) -6/Extension (discovered 2 exits: *Fac / *Cet) -6/Cetus -6/Archives (discovered 3 exits: *Fac / *Hub x2) -6/Hub_04(d) (discovered 4 exits: *Fac x4) -5/Factory (discovered 6 exits: *Fac x4 / *Upp x2) -5/Upper Caves -5/Upper Caves (discovered 2 exits: *Fac / *Zhi) -5/Zhirov -4/Proximity Caves -4/Factory (discovered 7 exits: Res x4 / *Upp x2 / Arm) History --------- Turn | Location | Event 16 | -11/Scrapyard | Discovered new exit (range 16) 87 | -11/Scrapyard | Entered Materials 292 | -10/Materials | Discovered new exit (range 8) 303 | -10/Materials | Build established: Mutant 565 | -10/Materials | Discovered new exit (range 15) 630 | -10/Materials | Discovered new exit (range 13) 709 | -10/Materials | Discovered new exit (range 7) 1045 | -10/Materials | Central database locked down 1220 | -10/Materials | Entered Mines 1238 | -10/Mines | Received a Mining Laser from a helpful Derelict 1492 | -10/Mines | Discovered new exit (range 9) 1515 | -10/Mines | Deemed a non-threat by the Exiles lab entrance 1515 | -10/Mines | Discovered new exit (range 5) 1528 | -10/Mines | Found a hidden stash of uninstalled traps 1549 | -10/Mines | Learned 4 Materials zone layouts 1561 | -10/Mines | Received a Rocket Launcher from a helpful Derelict 1572 | -10/Mines | Discovered new exit (range 8) 1700 | -10/Mines | Joined a pair of Derelicts in attacking an 0b10 outpost 1860 | -10/Mines | Entered Exiles 1860 | -10/Exiles | Accompanied by 1 ally 1884 | -10/Exiles | Met 8R-AWN 1899 | -10/Exiles | Met EX-HEX 1928 | -10/Exiles | Met EX-BIN 1941 | -10/Exiles | Aligned with FarCom system 1942 | -10/Exiles | Given EX-Vault access code 1964 | -10/Exiles | Opened EX-Vault 1971 | -10/Exiles | Found Chronowheel 1976 | -10/Exiles | Found YOLO Cannon 1998 | -10/Exiles | Warned to stay clear of 0b10 Research branches 2038 | -10/Exiles | Found Supersonic Drone Bay 2053 | -10/Exiles | Discovered new exit (range 56) 2060 | -10/Exiles | Discovered new exit (range 72) 2138 | -10/Exiles | Met EX-DEC 2382 | -10/Exiles | Stole three prototypes: Supersonic Drone Bay, Chronowheel, YOLO Cannon 2382 | -10/Exiles | Entered Mines 2383 | -9/Mines | Met a Derelict testing a Signal Generator 2385 | -9/Mines | Found Signal Generator 2386 | -9/Mines | Discovered new exit (range 14) 2459 | -9/Mines | Entered Materials 2459 | -8/Materials | Accompanied by 1 ally 2459 | -8/Materials | Evolved 4 slots: Utility x3, Weapon x1 2460 | -8/Materials | Identified exit to Factory 2894 | -8/Materials | Build established: Skirmisher 3434 | -8/Materials | Build established: Mutant 5086 | -8/Materials | Discovered exit to Factory (range 9) 5088 | -8/Materials | Central database locked down 5105 | -8/Materials | Entered Factory 5105 | -7/Factory | Accompanied by 1 ally 5105 | -7/Factory | Evolved 2 slots: Propulsion x2 5107 | -7/Factory | FarCom data flow suspended 5163 | -7/Factory | Identified exit to Lower Caves 5278 | -7/Factory | Discovered new exit (range 5) 5283 | -7/Factory | Identified exit to Factory 5669 | -7/Factory | Central database locked down 5815 | -7/Factory | Fabricated H-55 Commando? 6038 | -7/Factory | Entered Lower Caves 6038 | -7/Lower Caves | Accompanied by 3 allies 6242 | -7/Lower Caves | Build established: Scavenger-Assassin 6460 | -7/Lower Caves | Attracted the attention of an 0b10 base 6533 | -7/Lower Caves | Discovered new exit (range 15) 6557 | -7/Lower Caves | Identified exit to Lower Caves 6558 | -7/Lower Caves | Entered another Lower Caves area 6635 | -7/Lower Caves | Encountered a Warlord checkpoint 6876 | -7/Lower Caves | Spotted 0O-WUK(f) 6876 | -7/Lower Caves | Spotted 32-9UD(f) 6876 | -7/Lower Caves | Spotted I5-4MT(f) 6877 | -7/Lower Caves | Encountered a Master Thief 6877 | -7/Lower Caves | Encountered a Master Thief 6877 | -7/Lower Caves | Encountered a Master Thief 6877 | -7/Lower Caves | YOLO Cannon stolen by Master Thief 6878 | -7/Lower Caves | Supersonic Drone Bay stolen by Master Thief 6880 | -7/Lower Caves | Chronowheel stolen by Master Thief 7173 | -7/Lower Caves | Discovered new exit (range 14) 7187 | -7/Lower Caves | Identified exit to Data Miner 7195 | -7/Lower Caves | Entered Data Miner 7195 | -7/Data Miner | Discovered new exit (range 6) 7219 | -7/Data Miner | Met Data Miner 7242 | -7/Data Miner | Learned location of Section 7 (-2) 7242 | -7/Data Miner | Acquired the access code to Warlord's prototype stash 7261 | -7/Data Miner | Received God Mode back door access code from Data Miner 7289 | -7/Data Miner | Identified exit to Proximity Caves 7294 | -7/Data Miner | Entered Proximity Caves 8060 | -6/Proximity Caves | Escorted by Enhanced Grunt 8087 | -6/Proximity Caves | Lost 5 parts (2n1u2w) 8173 | -6/Proximity Caves | Learned 8 Factory zone layouts 8321 | -6/Proximity Caves | Discovered exit to Factory (range 11) 8387 | -6/Proximity Caves | Entered Factory 8387 | -6/Factory | Accompanied by 1 ally 8387 | -6/Factory | Evolved 2 slots: Propulsion x1, Utility x1 9068 | -6/Factory | Discovered new exit (range 9) 9078 | -6/Factory | Identified exit to Lower Caves 9548 | -6/Factory | Discovered exit to Lower Caves (range 3) 9637 | -6/Factory | Repaired Lrn. Missile Launcher 9848 | -6/Factory | Repaired System Restoration Module 9920 | -6/Factory | Discovered new exit (range 12) 9954 | -6/Factory | Identified exit to Extension 10042 | -6/Factory | Entered Extension 10654 | -6/Extension | Spotted B-75 Beast 10668 | -6/Extension | Spotted B-75 Beast 10694 | -6/Extension | Allies destroyed B-75 Beast 10738 | -6/Extension | Lost 10 allies 10746 | -6/Extension | Rescued a captive Derelict 10747 | -6/Extension | Rescued a captive Derelict 10855 | -6/Extension | Rescued a captive Derelict 10856 | -6/Extension | Rescued a captive Derelict 11010 | -6/Extension | Rescued A7 11065 | -6/Extension | Rescued a captive Derelict 11104 | -6/Extension | Build established: Hacker-Skirmisher 11206 | -6/Extension | Discovered new exit (range 10) 11209 | -6/Extension | Discovered new exit (range 6) 11233 | -6/Extension | Identified exit to Factory 11254 | -6/Extension | Identified exit to Cetus 11442 | -6/Extension | Disrupted transfer network 11445 | -6/Extension | Entered Cetus 11445 | -6/Cetus | Accompanied by 10 allies (A7) 11450 | -6/Cetus | Acquired a Cetus Manufacturing Module code from A7 11495 | -6/Cetus | Spotted Cetus Guard 11495 | -6/Cetus | Spotted Cetus Guard 11497 | -6/Cetus | Allies destroyed Cetus Guard 11497 | -6/Cetus | Spotted Cetus Guard 11501 | -6/Cetus | Spotted Cetus Guard 11503 | -6/Cetus | Allies destroyed Cetus Guard 11505 | -6/Cetus | Allies destroyed Cetus Guard 11513 | -6/Cetus | Allies destroyed Cetus Guard 11633 | -6/Cetus | Cetus Manufacturing Module disabled 11665 | -6/Cetus | Lost 3 allies 11683 | -6/Cetus | Failed to start Cetus Manufacturing Module 11703 | -6/Cetus | Discovered new exit (range 16) 11710 | -6/Cetus | Build established: Hacker-Tank 11720 | -6/Cetus | Identified exit to Archives 11729 | -6/Cetus | Entered Archives 11729 | -6/Archives | Accompanied by 5 allies (A7) 11792 | -6/Archives | Lost 4 allies 11854 | -6/Archives | Unable to access archive contents 11856 | -6/Archives | Discovered new exit (range 15) 11983 | -6/Archives | Discovered new exit (range 16) 11994 | -6/Archives | Discovered exit to Factory (range 16) 12101 | -6/Archives | Identified exit to Hub_04(d) 12154 | -6/Archives | Entered Hub_04(d) 12413 | -6/Hub_04(d) | Build established: Scavenger-Skirmisher 13229 | -6/Hub_04(d) | Network Hub disabled 13538 | -6/Hub_04(d) | Network Hub disabled 13545 | -6/Hub_04(d) | Spotted Lightning 13547 | -6/Hub_04(d) | Spotted Lightning 13571 | -6/Hub_04(d) | Spotted Lightning 13616 | -6/Hub_04(d) | System corruption reached 10% 13631 | -6/Hub_04(d) | Spotted Lightning 13634 | -6/Hub_04(d) | Spotted Lightning 13635 | -6/Hub_04(d) | Spotted Lightning 13664 | -6/Hub_04(d) | Entered Factory 13664 | -5/Factory | Evolved 2 slots: Utility x2 13930 | -5/Factory | Repaired Centrium Medium Armor Plating? 13947 | -5/Factory | Build established: Hacker-Skirmisher 14045 | -5/Factory | Fabricated Mic. Antimatter Reactor (x2) 14332 | -5/Factory | Lost 4 parts (3n1w) 14457 | -5/Factory | Discovered new exit (range 6) 14462 | -5/Factory | Identified exit to Upper Caves 14738 | -5/Factory | Repaired Arm. Leg 14765 | -5/Factory | Repaired Flexi-carbon Leg 14840 | -5/Factory | Repaired Adv. Heat Sink 14866 | -5/Factory | Repaired Arm. Leg 14896 | -5/Factory | Repaired Neutrino Core 14951 | -5/Factory | Repaired Centrium Medium Armor Plating 15504 | -5/Factory | Repaired Titanium Leg? 15579 | -5/Factory | Repaired Broken Flexi-carbon Leg 15623 | -5/Factory | Repaired Broken HERF Cannon 15850 | -5/Factory | Identified exit to Factory 16061 | -5/Factory | Fabricated Enh. Armored Leg (x1) 16369 | -5/Factory | Repaired Centrium Medium Armor Plating 16383 | -5/Factory | Repaired Hcp. Storage Unit 16452 | -5/Factory | Repaired Adv. Sensor Array 16494 | -5/Factory | Repaired Antimatter Cannon 16537 | -5/Factory | Entered Upper Caves 16551 | -5/Upper Caves | Attracted the attention of an 0b10 checkpoint 16683 | -5/Upper Caves | Learned Factory security intel 16793 | -5/Upper Caves | Discovered new exit (range 10) 17093 | -5/Upper Caves | Identified exit to Upper Caves 17097 | -5/Upper Caves | Entered another Upper Caves area 17097 | -5/Upper Caves | Spotted WQ-UWE(f) 17098 | -5/Upper Caves | Encountered a Master Thief 17098 | -5/Upper Caves | Adv. Heat Sink stolen by Master Thief 17116 | -5/Upper Caves | Discovered exit to Factory (range 9) 17329 | -5/Upper Caves | Acquired the password to a Derelict Tinkerer's latest research 17674 | -5/Upper Caves | Found Alien Artifact 17674 | -5/Upper Caves | Identified Dimensional Node Initializer 17674 | -5/Upper Caves | Initialized slip node 17774 | -5/Upper Caves | Caught by Unaware searching for contraband prototypes 17786 | -5/Upper Caves | System corruption reached 10% 17943 | -5/Upper Caves | Discovered new exit (range 4) 17946 | -5/Upper Caves | Identified exit to Zhirov 17965 | -5/Upper Caves | Learned 4 Factory zone layouts 18020 | -5/Upper Caves | Entered Zhirov 18020 | -5/Zhirov | Discovered new exit (range 4) 18026 | -5/Zhirov | Identified exit to Proximity Caves 18046 | -5/Zhirov | Met Zhirov 18072 | -5/Zhirov | Learned location of Quarantine (-2) 18072 | -5/Zhirov | Learned location of Testing (-3) 18072 | -5/Zhirov | Learned location of Command (-1) 18092 | -5/Zhirov | Zhirov requested help retrieving the SGEMP Prototype 18100 | -5/Zhirov | Attacked by Zhirov 18124 | -5/Zhirov | Destroyed Svarog 18163 | -5/Zhirov | Destroyed Perun 18189 | -5/Zhirov | Zhirov warped through subspace 18196 | -5/Zhirov | Zhirov detonated his lab 18196 | -5/Zhirov | Cloak Generator disabled 18197 | -5/Zhirov | Core integrity fell below 50% 18203 | -5/Zhirov | System corruption reached 30% 18227 | -5/Zhirov | Lost 13 parts (1p4n3u5w) 18387 | -5/Zhirov | Entered Proximity Caves 18493 | -4/Proximity Caves | Learned 4 Research zone layouts 18795 | -4/Proximity Caves | Spotted B-86 Titan 18961 | -4/Proximity Caves | Lost 3 parts (1p1n1w) 19445 | -4/Proximity Caves | Core integrity fell below 20% 19520 | -4/Proximity Caves | Discovered exit to Factory (range 15) 19701 | -4/Proximity Caves | Entered Factory 19701 | -4/Factory | Evolved 2 slots: Power x1, Utility x1 19702 | -4/Factory | Identified exit to Research 19944 | -4/Factory | Identified exit to Upper Caves 19944 | -4/Factory | Identified exit to Armory 20056 | -4/Factory | Lost 4 parts (1p1n2w) 20268 | -4/Factory | Repaired Nova Cannon 20316 | -4/Factory | Repaired Hcp. Storage Unit 20343 | -4/Factory | Found Quantum Capacitor 20756 | -4/Factory | Build established: Scavenger-Skirmisher 21289 | -4/Factory | Lost 3 parts (2n1u) 21895 | -4/Factory | Fabricated Enh. Quantum Rifle? 22099 | -4/Factory | Fabricated Enh. Armored Leg? 22217 | -4/Factory | Build established: Scavenger-Gunner 22721 | -4/Factory | Build established: Scavenger-Skirmisher 22737 | -4/Factory | Repaired Med. Reactive Plating? 22858 | -4/Factory | Repaired Flexi-carbon Leg? 22913 | -4/Factory | Repaired Adv. Sensor Array? 23029 | -4/Factory | Lost 9 parts (2p1n3u3w) 23172 | -4/Factory | Local machine network offline 23255 | -4/Factory | Core integrity fell below 50% 23589 | -4/Factory | Lost 3 parts (1p1u1w) 23808 | -4/Factory | System corruption reached 10% 24057 | -4/Factory | Lost 6 parts (1p1n4u) 24201 | -4/Factory | First assault squad dispatched 24297 | -4/Factory | Lost 3 parts (1u2w) 24382 | -4/Factory | Lost 6 parts (2p2n1u1w) 24503 | -4/Factory | Incoming assault squad redirected 24534 | -4/Factory | Core integrity fell below 20% 24565 | -4/Factory | Released all parts (11) 24566 | -4/Factory | Destroyed by G-67 Veteran with Field Laser Last Messages --------------- 24561_ Acquired 10 matter. 24561_ R-10 Processor collects Flexi-carbon Leg. 24561_ W-44 Eye sends out distress signal. 24561_ M-13 Machinist repairs G-67 Veteran. 24562_ Acquired 10 matter. 24563_ Imp. Heat Sink destroyed. 24565_ Released HERF Cannon. 24565_ Released Imp. Heat Sink. 24565_ Released Adv. Heat Sink. 24565_ Released Hcp. Storage Unit. 24565_ Released Adv. Terrain Scan Processor. 24565_ Released Adv. Signal Interpreter. 24565_ Released Imp. Armor Integrity Analyzer. 24565_ Released Imp. Target Analyzer. 24565_ Released Cld. Plasma Rifle. 24565_ Released Myomer Leg. 24566_ P-70 Sage resets R-10 Processor, system corruption cleaned. 24566_ R-10 Processor collects Mapping Drone Bay. Map ----- +----------------------------------------------------+ | # ######%! =!%+ %=* """ + | | ##########+######## =|#### [=!* # | | ########## #########%############### ###+#### | | ########## ######### ###### ## # | | ######### ###### # | | ####### # """""" | | ####### > # """""" | | ####### # """""" | | ### ####### ##### # """""" | | ### ###T ## ##### ########+###### | | ### ########+########### ##### | | ######## + ##### ##### | | ######## #### """ """ ########### | | ######### ############### """ """ ## # | | +########## #### ! # """ """ ## # | | #### #### # ## # | | #### #### ""% " ############# """" + | | #### #### "" "" ############## """" # | | %+ % % %+ "" """ ############## """" # | | #########%""" """ ############## """" # | | ######+#########%""%%""" ############## # | | ! # ######### ############## # | | " # ######### " %"" !##################+##### | | # ##### "R "" ############### | | ##### "" w""" ##?######?##### | | ##### "" """p@############### | | ##### """ ""[!=############### | | # ### p!R![############### | | # u%%]!####?######?### #### | | ############g############# ###? ## | | ## RR[ ## | | # g ? #? | | # """ ^ ? ? + | | """" """ ^ ## | | """" # """ ? ??# | | """" ############+??####???? | | """" # #? ? ???? ???#??? ? | | """" # # ? ? ?????#?#? | | """" + ?????? ?? ?? ? #??? | | """" # "?" ??? ?? ??????#?? | | " #?"?"?#? ????????? ??#? ? | | # " #???" ?????? ? ? ? ? ?#? | | # " # ??"?#? ???????????##?# | | ##/### ? #? ???#?????????? ?? #### | | """ """ " # ??? ? ???????????#?#?## | | """ "???" #????????????? ?? ??#?## | | """?" ? " ???????????????? ???????# | | ? ?? ??? ?????????????? ? ????##? | | ? ? ? ?????? ????????????????####??#?# | | ######?##+?????????????????????????????????##??#?# | +----------------------------------------------------+ Best States ------------- Heat Dissipation 90 Coolant Potential 65 Energy Generation 46 Energy Capacity 500 Matter Stores 300 Matter Capacity 300 Sight Range 16 Robot Scan Range 16 Terrain Scan Range 24 Terrain Scan Density 210 Jamming Range 14 Power Amplification 30 Corruption Containment 12 Armor Coverage 325 Resistance: KI 30 Resistance: TH 20 Resistance: EM 15 Phase Shifting 10 Evasion (%) 60 Targeting Accuracy 8 Target Analysis 6 Armor Integrity Analysis 40 Particle Charging 35 Offensive Hacking 36 Defensive Hacking 14 Item Schematics ----------------- Imp. Terrain Scanner | -8/Materials | Scanalyzed Imp. Sensor Array | -8/Materials | Scanalyzed Carbon-fiber Leg | -8/Materials | Scanalyzed Combat Drone Bay | -7/Data Miner | Free Lgt. Regenerative Plating | -7/Data Miner | Free Biomechanical Wings | -7/Data Miner | Free Thermal Defense Suite | -7/Data Miner | Free Antimatter Cannon | -7/Data Miner | Free Arm. Medium Treads | -7/Data Miner | Free Imp. Transmission Jammer | -7/Data Miner | Free Adv. Plasma Cannon | -7/Data Miner | Free Imp. Gravmag System | -7/Data Miner | Free Antigrav System | -7/Data Miner | Free Imp. Remote Shield | -7/Data Miner | Free Dispersion Rifle | -7/Data Miner | Free Neutron Cannon | -6/Factory | Scanalyzed Adv. System Restoration Module | -5/Factory | Hacked Antimatter Reactor | -5/Factory | Hacked Antimissile System | -5/Factory | Hacked Enh. Armored Leg | -5/Factory | Hacked Adv. Hacking Suite | -5/Factory | Hacked Assault Drone Bay | -5/Zhirov | Free Exp. Heat Sink | -5/Zhirov | Free Exp. Optical Array | -5/Zhirov | Free Imp. Arc Thrower | -5/Zhirov | Free Myomer Leg | -4/Factory | Hacked Robot Schematics ------------------ R-10 Processor | -7/Data Miner | Free W-25 Informer | -7/Data Miner | Free B-48 Gladiator | -7/Data Miner | Free M-22 Extractor | -7/Data Miner | Free P-60 Hacker | -7/Data Miner | Free Fabricated ------------ H-55 Commando | x2 | -7/Factory | Preloaded Mic. Antimatter Reactor | x2 | -5/Factory | Preloaded Enh. Armored Leg | x1 | -5/Factory Enh. Quantum Rifle | x2 | -4/Factory | Preloaded Enh. Armored Leg | x1 | -4/Factory Alien Tech Used ----------------- Dimensional Node Initializer Achievements -------------- None Challenges ------------ None Game ------ Seed AdvancedAngularAutogun Manual? 0 Play Time 06:35:20 Cumulative 168.9 hours Start 2024.02.29 @ 23:37:52 End 2024.03.01 @ 19:43:03 Sessions 3 Manual Loads 0 Difficulty Rogue Special Mode None Game No. 96 Rogue 96 Adventurer 0 Explorer 0 Win Type - Total 2 Types 2/0/0/0/0/0/0/0/0 Lore% 48 Gallery% 52 Achievement% 46 Wizard Run 0 Options --------- Layout 1 ASCII 0 Keyboard 1 Movement Vi Keybinds 0 Fullscreen 2 Font 24/Smallcaps Map View 50x35 Zoom Use 0% Tactical HUD 1 Map Filters NONE Filters NONE Steam 1 RUN: 4add5664-bfad-4d98-9ce9-b2f130fef96f